bitfinex-derivatives/quotes_SOLF0:USTF0_20250212
["timestamp","ask_amount","ask_price","bid_price","bid_amount"]
[1739378537184,5.2365,190.98,190.89,23.84585404]
[1739378537384,1.644,191.09,190.94,0.03415205]
[1739378537385,23.84585404,191.08,190.94,0.03415205]
[1739378537585,5.2355,191.02,190.97,5.2364]
[1739378537990,5.2355,191.02,190.99,0.03305707]
[1739378538185,5.2357,191.01,190.99,0.03305707]
[1739378538389,23.84585404,191.05,190.99,0.03305707]
[1739378540189,5.2358,191.0,190.99,0.03305707]
[1739378540990,23.84585404,191.05,190.99,0.03305707]
[1739378541191,24.15575404,191.08,190.99,0.03305707]
[1739378541793,2.4126,191.09,191.0,5.2358]
[1739378541991,2.4126,191.09,190.99,0.03305707]
[1739378542290,5.2341,191.07,191.02,5.2353]
[1739378542591,1.644,191.09,191.02,5.2353]
[1739378542793,1.644,191.09,191.03,0.03829978]
[1739378542993,5.2344,191.06,191.03,0.03829978]
[1739378543195,0.7686,191.13,191.03,5.27319978]
[1739378543494,0.9597364,191.12,191.03,5.27319978]
[1739378543794,0.9597364,191.12,191.03,0.03829978]
[1739378543991,5.2329,191.11,191.06,5.2341]
[1739378544187,1.5882,191.17,191.04,23.84585404]
[1739378544395,1.0754,191.19,191.07,0.03401097]
[1739378544694,5.2317,191.16,191.11,5.2327]
[1739378544893,1.0754,191.19,191.11,0.03706186]
[1739378545090,5.2317,191.15,191.11,0.03706186]
[1739378545291,1.0754,191.19,191.11,0.03706186]
[1739378545489,0.96007254,191.18,191.11,0.03706186]
[1739378546191,23.84585404,191.17,191.11,0.03706186]
[1739378546392,0.96007254,191.16,191.11,0.03706186]
[1739378547094,5.2325,191.12,191.11,0.03706186]
[1739378547289,23.84585404,191.2,191.11,0.03706186]
[1739378547596,23.84585404,191.23,191.07,23.84585404]
[1739378547796,0.960123,191.22,191.14,0.03785216]
[1739378548695,5.2312,191.17,191.14,0.03785216]
[1739378549092,23.84585404,191.23,191.14,0.03785216]
[1739378549296,5.2313,191.17,191.14,0.03785216]
[1739378550197,23.84585404,191.17,191.05,4.7671]
[1739378550395,23.84585404,191.14,191.05,1.5555]
[1739378550594,23.84585404,191.14,191.05,6.7899]
[1739378550795,5.2333,191.1,191.05,6.7899]
[1739378551294,23.84585404,191.14,191.05,1.5555]
[1739378551499,5.26982067,191.09,191.06,0.03580071]
[1739378551693,0.03622067,191.09,191.06,0.03580071]
[1739378552094,5.2339,191.07,191.06,0.03580071]
[1739378552589,5.2349,191.04,190.99,5.236]
[1739378553292,23.84585404,191.11,190.95,25.47305404]
[1739378553492,5.2344,191.06,191.01,5.2354]
[1739378553690,0.03711401,191.05,191.01,0.03725344]
[1739378555195,0.03711401,191.05,191.03,5.2347]
[1739378556105,0.03711401,191.05,191.04,5.2347]
[1739378556398,0.96073419,191.16,191.02,1.6662]
[1739378557003,1.6595,191.18,191.04,23.84585404]
[1739378557198,23.84585404,191.23,191.07,23.84585404]
[1739378557406,0.03968167,191.13,191.09,0.03896517]
[1739378557703,5.2314,191.17,191.07,23.84585404]
[1739378558004,0.03706454,191.13,191.11,5.2327]
[1739378558199,23.84585404,191.23,191.09,0.03415655]
[1739378558400,5.2302,191.21,191.09,0.03415655]
[1739378558599,5.2302,191.21,191.07,23.84585404]
[1739378558802,0.7299,191.24,191.07,23.84585404]
[1739378558803,5.2312,191.17,191.07,23.84585404]
[1739378559206,23.84585404,191.2,191.04,23.84585404]
[1739378559400,5.2315,191.16,191.11,5.2326]
[1739378560607,5.2315,191.16,191.12,5.2325]
[1739378562105,5.232,191.14,191.1,5.26685352]
[1739378562308,23.84585404,191.14,191.1,0.03375352]
[1739378562503,23.84585404,191.14,191.02,1.6662]
[1739378562700,1.5275,191.13,191.02,1.6662]
[1739378563301,5.2336,191.08,191.04,5.2345]
[1739378563803,5.234,191.07,191.04,0.03871658]
[1739378564410,0.03899494,191.08,191.04,0.03871658]
[1739378564606,5.2344,191.05,191.04,0.03871658]
[1739378565911,5.2342,191.06,191.04,0.03871658]
[1739378567313,5.2344,191.05,191.04,0.03871658]
[1739378572622,23.84585404,191.05,190.96,3.0223]
[1739378572916,23.84585404,191.05,190.93,67.12327031]
[1739378573222,5.236,191.0,190.93,67.12327031]
[1739378573419,23.84585404,191.08,190.93,67.12327031]
[1739378573821,0.03879964,191.02,190.99,5.27630256]
[1739378574321,0.03879964,191.02,190.99,0.04030256]
[1739378574522,0.03879964,191.02,191.0,5.2357]
[1739378577126,0.03879964,191.02,190.99,0.04030256]
[1739378577328,0.03879964,191.02,191.01,5.2355]
[1739378580721,5.2339,191.08,191.04,5.2346]
[1739378580924,1.5275,191.13,190.98,23.84585404]
[1739378581127,23.84585404,191.14,190.99,1.631]
[1739378581619,5.2331,191.1,191.06,5.2341]
[1739378582022,5.26864253,191.1,191.06,5.26941281]
[1739378582228,0.03554253,191.1,191.07,5.2339]
[1739378582927,5.26874253,191.1,191.07,5.2339]
[1739378586030,0.03554253,191.1,191.06,0.03531281]
[1739378587627,5.2334,191.09,191.06,5.26941281]
[1739378588429,5.2337,191.08,191.06,0.03531281]
[1739378589239,5.2339,191.07,191.06,0.03531281]
[1739378596132,0.03554253,191.1,191.06,0.03531281]
[1739378596639,5.26884253,191.1,191.07,5.2337]
[1739378597738,0.03554253,191.1,191.08,5.2334]
[1739378599144,0.03554253,191.1,191.06,0.03531281]
[1739378599145,16.45493918,191.2,191.07,14.80103918]
[1739378599337,0.96178104,191.19,191.08,1.5143]
[1739378599639,0.96178104,191.19,191.11,14.80103918]
[1739378599841,14.80103918,191.23,191.12,5.2325]
[1739378600236,5.2311,191.18,191.13,5.2322]
[1739378600434,5.2311,191.18,191.16,0.03934623]
[1739378600736,85.3307808,191.25,191.16,0.03934623]
[1739378600935,5.2303,191.21,191.16,5.27054623]
[1739378601839,5.2304,191.2,191.16,0.03934623]
[1739378603041,5.2304,191.2,191.16,5.27064623]
[1739378603241,23.64525101,191.27,191.16,0.03934623]
[1739378603536,85.3307808,191.31,191.17,23.64525101]
[1739378603735,0.96134663,191.3,191.2,5.2301]
[1739378603936,0.96134663,191.3,191.23,0.03888338]
[1739378604539,85.3307808,191.31,191.23,0.03888338]
[1739378604744,0.96132172,191.3,191.23,0.03888338]
[1739378605043,5.229,191.25,191.23,0.03888338]
[1739378605343,23.64525101,191.27,191.23,0.03888338]
[1739378605946,23.64525101,191.24,191.12,3.1576]
[1739378606144,23.64525101,191.21,191.12,3.1576]
[1739378606340,23.64525101,191.21,191.12,1.5839]
[1739378606940,23.64525101,191.21,191.11,6.8614]
[1739378607147,5.2314,191.16,191.15,0.03353375]
[1739378609136,23.68111047,191.18,191.07,6.8178]
[1739378609337,5.2326,191.12,191.07,6.8178]
[1739378610241,23.64525101,191.21,191.07,1.5839]
[1739378610444,0.03423364,191.11,191.08,0.03478726]
[1739378610645,0.96073769,191.2,191.07,1.5839]
[1739378610845,0.04021286,191.11,191.08,0.03411985]
[1739378611040,0.96073769,191.2,191.07,1.5839]
[1739378611246,0.96073769,191.2,191.08,0.03831646]
[1739378611446,0.03445502,191.15,191.1,5.2328]
[1739378611647,0.03445502,191.15,191.12,0.03525795]
[1739378611847,23.64525101,191.27,191.12,0.03525795]
[1739378612250,23.64525101,191.27,191.11,23.64525101]
[1739378612746,5.2292,191.25,191.19,5.2305]
[1739378612947,0.03784674,191.21,191.19,5.2305]
[1739378613345,0.03784674,191.21,191.17,5.26494782]
[1739378613651,0.03784674,191.21,191.17,0.03404782]
[1739378614450,5.2309,191.19,191.17,0.03404782]
[1739378614652,0.03784674,191.21,191.17,0.03404782]
[1739378614952,0.03784674,191.21,191.17,5.26494782]
[1739378615557,0.03784674,191.21,191.17,0.03404782]
[1739378615852,0.03784674,191.21,191.19,5.2304]
[1739378616457,0.03784674,191.21,191.17,0.03404782]
[1739378619158,5.2308,191.19,191.17,0.03404782]
[1739378620355,5.2309,191.18,191.17,0.03404782]
[1739378624952,5.2305,191.2,191.17,0.03404782]
[1739378625158,0.03784674,191.21,191.17,0.03404782]
[1739378625864,5.2304,191.2,191.17,0.03404782]
[1739378626558,5.2306,191.19,191.17,0.03404782]
[1739378627559,5.2309,191.18,191.17,0.03404782]
[1739378627761,0.03784674,191.21,191.17,0.03404782]
[1739378627964,0.03784674,191.21,191.17,14.82080897]
[1739378628165,5.2289,191.26,191.17,14.82080897]
[1739378628360,5.2289,191.26,191.18,1.5934]
[1739378628762,5.2289,191.26,191.21,5.2298]
[1739378628962,5.2289,191.26,191.19,1.507]
[1739378628963,14.78676115,191.29,191.19,1.507]
[1739378629261,14.78676115,191.33,191.2,14.78676115]
[1739378629462,0.96113026,191.32,191.22,0.03460334]
[1739378629665,14.78676115,191.33,191.22,0.03460334]
[1739378630665,5.2277,191.3,191.25,5.2287]
[1739378631266,5.2279,191.29,191.26,0.03896241]
[1739378631863,100.11754195,191.36,191.27,5.2282]
[1739378632464,14.78676115,191.33,191.26,0.03896241]
[1739378632765,85.3307808,191.36,191.26,0.03896241]
[1739378632766,14.78676115,191.3,191.26,0.03896241]
[1739378633367,5.2284,191.28,191.26,0.03896241]
[1739378634170,5.2284,191.27,191.26,0.03896241]
[1739378634968,20.01516115,191.27,191.26,0.03896241]
[1739378635163,5.2284,191.27,191.26,6.241e-05]
[1739378635370,5.227,191.33,191.26,14.78682356]
[1739378635668,85.3307808,191.36,191.26,6.241e-05]
[1739378635863,90.5567808,191.36,191.29,5.2276]
[1739378636068,85.3307808,191.36,191.3,4.7031]
[1739378636271,85.3307808,191.36,191.31,0.03817804]
[1739378636476,0.03930185,191.35,191.31,0.03817804]
[1739378638680,5.2266,191.34,191.31,0.03817804]
[1739378640381,5.26560185,191.35,191.31,0.03817804]
[1739378640785,0.03930185,191.35,191.31,0.03817804]
[1739378641485,85.3307808,191.36,191.33,23.61377339]
[1739378641686,15.69430853,191.37,191.36,5.226]
[1739378641886,10.68490853,191.37,191.36,28.83977339]
[1739378642082,4.35220853,191.37,191.36,28.83977339]
[1739378642382,284.435936,191.45,191.36,23.61377339]
[1739378642588,153.61546,191.39,191.36,23.61377339]
[1739378642781,153.61546,191.39,191.36,23.64873713]
[1739378642982,153.61546,191.39,191.38,5.2254]
[1739378644482,284.435936,191.45,191.4,5.2249]
[1739378646189,6.7556,191.47,191.4,5.2249]
[1739378646383,1.1448,191.49,191.36,23.61377339]
[1739378646691,1.6101,191.59,191.42,23.65269063]
[1739378646991,0.96002926,191.58,191.42,23.61377339]
[1739378647184,0.96002926,191.58,191.49,0.03478971]
[1739378648192,4.7199,191.59,191.49,0.03478971]
[1739378648389,0.95988953,191.58,191.49,0.03478971]
[1739378648785,5.2219,191.51,191.49,0.03478971]
[1739378650292,23.61377339,191.57,191.49,0.03478971]
[1739378651299,23.61377339,191.61,191.49,0.03478971]
[1739378651489,23.61377339,191.61,191.5,5.222]
[1739378651885,23.61377339,191.61,191.54,0.0390236]
[1739378652184,5.2208,191.56,191.54,0.0390236]
[1739378653787,23.61377339,191.64,191.54,0.0390236]
[1739378654384,5.2204,191.57,191.54,0.0390236]
[1739378655092,23.61377339,191.61,191.54,0.0390236]
[1739378655495,23.61377339,191.61,191.45,30.88692588]
[1739378655792,5.2202,191.57,191.56,0.03877479]
[1739378656094,23.61377339,191.61,191.52,5.2215]
[1739378656293,5.2206,191.56,191.55,0.03479882]
[1739378656594,23.61377339,191.61,191.5,5.2219]
[1739378656897,5.2209,191.55,191.54,0.03906922]
[1739378657694,5.2205,191.57,191.54,0.03906922]
[1739378658098,5.2205,191.57,191.48,23.61377339]
[1739378658286,5.2205,191.57,191.54,0.03660956]
[1739378658792,5.2205,191.56,191.54,0.03660956]
[1739378659092,5.2205,191.56,191.51,5.2216]
[1739378659292,5.2205,191.56,191.53,0.04010649]
[1739378659890,5.2208,191.55,191.53,0.04010649]
[1739378661292,5.2216,191.53,191.49,10.71537235]
[1739378661893,14.76276161,191.56,191.49,10.71537235]
[1739378662195,14.76276161,191.56,191.5,5.222]
[1739378662196,0.03712801,191.56,191.5,5.222]
[1739378662395,0.03712801,191.56,191.51,0.03906755]
[1739378662693,5.2213,191.54,191.51,0.03906755]
[1739378662888,14.76276161,191.56,191.51,0.03906755]
[1739378663201,14.7256336,191.55,191.51,0.03906755]
[1739378663699,14.7256336,191.55,191.48,5.2225]
[1739378664200,5.2216,191.52,191.48,5.2225]
[1739378664391,5.2216,191.52,191.5,0.03333197]
[1739378664998,5.2211,191.54,191.51,21.81945747]
[1739378665595,5.2211,191.54,191.51,21.85821217]
[1739378665901,5.2216,191.52,191.51,21.85821217]
[1739378666697,5.2216,191.52,191.51,14.34981217]
[1739378667192,14.7256336,191.55,191.51,117.45395032]
[1739378667897,14.7256336,191.55,191.51,0.0387547]
[1739378668702,5.2216,191.52,191.51,0.0387547]
[1739378669495,5.2221,191.5,191.49,3.8318034]
[1739378669702,14.7256336,191.52,191.47,58.18521993]
[1739378670001,14.7256336,191.48,191.47,58.18521993]
[1739378670202,14.7256336,191.48,191.43,0.40413]
[1739378670405,14.7256336,191.45,191.43,0.40413]
[1739378670599,14.7256336,191.45,191.42,4.69693284]
[1739378670896,5.2241,191.43,191.42,3.81603284]
[1739378671101,0.03570927,191.47,191.42,3.81603284]
[1739378671501,0.03570927,191.47,191.44,14.7256336]
[1739378671905,0.03570927,191.47,191.44,14.7628535]
[1739378672302,5.2212,191.54,191.44,14.7628535]
[1739378672502,5.2212,191.54,191.47,14.7256336]
[1739378673009,5.2214,191.53,191.49,5.2223]
[1739378673305,14.7256336,191.58,191.44,14.7256336]
[1739378673499,0.0334087,191.53,191.49,0.03774923]
[1739378674706,0.0334087,191.53,191.5,5.222]
[1739378676108,0.0334087,191.53,191.52,5.2216]
[1739378677811,0.0334087,191.53,191.51,5.2218]
[1739378678210,0.0334087,191.53,191.49,0.03774923]
[1739378679011,0.0334087,191.53,191.52,5.2216]
[1739378681006,5.2202,191.58,191.54,5.2208]
[1739378681809,5.2196,191.6,191.51,1.5513]
[1739378682210,5.2196,191.6,191.54,0.03790214]
[1739378682812,5.2191,191.62,191.58,5.2199]
[1739378683201,5.2191,191.62,191.58,5.25317182]
[1739378685213,23.57341648,191.68,191.58,5.25317182]
[1739378685613,23.57341648,191.68,191.58,0.03327182]
[1739378685813,5.2185,191.64,191.6,5.2193]
[1739378686013,5.2185,191.64,191.55,23.57341648]
[1739378686216,5.2185,191.64,191.59,0.03761533]
[1739378686516,25.07701648,191.71,191.59,0.03761533]
[1739378686715,5.2181,191.65,191.61,5.219]
[1739378686911,5.2181,191.65,191.63,0.03892197]
[1739378687111,5.2183,191.64,191.63,0.03892197]
[1739378693615,14.70938112,191.7,191.63,0.03892197]
[1739378693918,14.70938112,191.73,191.63,0.03892197]
[1739378694307,14.70938112,191.73,191.62,1.5484]
[1739378694511,14.70938112,191.73,191.66,0.03424969]
[1739378695109,14.70938112,191.7,191.66,0.03424969]
[1739378695918,5.2175,191.67,191.66,0.03424969]
[1739378696221,14.70938112,191.7,191.66,0.03424969]
[1739378696417,5.2172,191.69,191.66,0.03424969]
[1739378697315,5.2175,191.67,191.66,0.03424969]
[1739378698511,19.92688112,191.67,191.66,0.03424969]
[1739378700115,5.2187,191.63,191.6,5.2193]
[1739378701020,5.218,191.66,191.62,5.2189]
[1739378701214,0.03849673,191.63,191.6,0.03813318]
[1739378701517,0.03849673,191.63,191.62,5.2188]
[1739378702723,5.2172,191.68,191.65,5.218]
[1739378702920,14.70938112,191.73,191.61,14.70938112]
[1739378703223,14.70938112,191.73,191.6,3.1182]
[1739378703224,16.36708112,191.77,191.64,14.70938112]
[1739378703822,16.36708112,191.77,191.69,0.0354543]
[1739378705224,5.2164,191.72,191.69,0.0354543]
[1739378705524,14.70938112,191.74,191.69,0.0354543]
[1739378705721,5.2167,191.7,191.69,0.0354543]
[1739378705924,14.70938112,191.71,191.6,3.1182]
[1739378706425,14.70938112,191.71,191.61,5.2189]
[1739378707027,5.218,191.66,191.64,0.03332184]
[1739378707227,14.74361915,191.68,191.64,0.03332184]
[1739378707428,14.70938112,191.65,191.64,0.03332184]
[1739378707626,19.92748112,191.65,191.64,0.03332184]
[1739378708831,5.2203,191.57,191.49,14.70938112]
[1739378709026,14.70938112,191.59,191.5,5.2219]
[1739378709430,5.2207,191.56,191.47,3.1757]
[1739378709631,14.70938112,191.59,191.49,14.70938112]
[1739378709931,0.03814532,191.55,191.52,0.03893481]
[1739378710132,0.03814532,191.55,191.53,5.2213]
[1739378710328,14.70938112,191.59,191.47,3.1757]
[1739378710633,0.03432997,191.56,191.52,0.03426996]
[1739378711226,5.2213,191.53,191.52,0.03426996]
[1739378711834,5.2211,191.54,191.52,0.03426996]
[1739378712333,14.70938112,191.68,191.52,14.74365108]
[1739378712529,14.70938112,191.68,191.56,14.70938112]
[1739378712932,14.70938112,191.62,191.5,14.70938112]
[1739378713131,14.70938112,191.59,191.47,16.30928112]
[1739378713534,0.03959072,191.55,191.51,0.04012414]
[1739378713729,14.70938112,191.53,191.51,0.04012414]
[1739378713929,14.70938112,191.53,191.38,65.16161304]
[1739378713930,14.70938112,191.53,191.38,79.87099416]
[1739378714229,5.2223,191.5,191.43,5.224]
[1739378714838,5.2219,191.52,191.41,36.3544632]
[1739378715138,0.03542714,191.48,191.45,0.03626799]
[1739378715336,1.5756,191.58,191.47,14.70938112]
[1739378715537,14.70938112,191.56,191.44,14.70938112]
[1739378715737,23.56855983,191.55,191.41,21.64508208]
[1739378715934,5.2229,191.48,191.41,21.64508208]
[1739378716330,5.2229,191.48,191.4,58.18521993]
[1739378716536,0.03481746,191.46,191.43,0.03344513]
[1739378716740,23.56855983,191.45,191.43,0.03344513]
[1739378717134,5.2238,191.44,191.43,0.03344513]
[1739378717438,23.56855983,191.45,191.37,5.2255]
[1739378717833,23.56855983,191.45,191.35,5.2261]
[1739378718031,23.56855983,191.41,191.25,110.84638972]
[1739378718233,23.56855983,191.41,191.28,1.6531]
[1739378718440,23.56855983,191.38,191.28,1.6531]
[1739378718640,0.03659322,191.36,191.33,0.03638783]
[1739378718837,5.2263,191.35,191.33,0.03638783]
[1739378719033,0.03659322,191.36,191.33,0.03638783]
[1739378719434,23.56855983,191.35,191.23,1.6476]
[1739378719843,23.56855983,191.32,191.19,86.20035154]
[1739378720142,23.56855983,191.29,191.19,86.20035154]
[1739378720438,5.2283,191.28,191.19,86.20035154]
[1739378720644,0.03322903,191.26,191.22,0.03628975]
[1739378720939,23.56855983,191.29,191.19,86.20035154]
[1739378721345,0.03410972,191.26,191.22,0.03774483]
[1739378722245,5.26290972,191.26,191.22,0.03774483]
[1739378722844,28.83136955,191.26,191.14,1.667]
[1739378723036,23.56855983,191.23,191.09,1.6434]
[1739378724042,0.03559149,191.18,191.1,23.56855983]
[1739378724247,0.03559149,191.18,191.14,0.03523349]
[1739378727344,23.56855983,191.17,191.04,1.5279]
[1739378727546,23.56855983,191.17,190.98,125.3835802]
[1739378727752,23.56855983,191.11,191.04,5.2346]
[1739378728050,1.5576,191.1,191.04,5.2346]
[1739378728447,1.5576,191.1,190.98,101.81502037]
[1739378728645,0.03816759,191.09,191.05,0.03802837]
[1739378729145,5.2339,191.08,191.05,0.03802837]
[1739378729653,0.03816759,191.09,191.05,0.03802837]
[1739378730952,0.03816759,191.09,191.07,5.2338]
[1739378731254,0.03816759,191.09,191.05,0.03802837]
[1739378732750,5.27156759,191.09,191.05,0.03802837]
[1739378733245,0.03816759,191.09,191.05,0.03802837]
[1739378733850,0.03816759,191.09,191.06,5.2341]
[1739378734054,5.27156759,191.09,191.05,0.03802837]
[1739378735248,0.03816759,191.09,191.06,5.234]
[1739378736546,5.27166759,191.09,191.05,0.03802837]
[1739378737049,0.03816759,191.09,191.05,0.03802837]
[1739378737248,0.03816759,191.09,191.06,5.234]
[1739378737646,0.03816759,191.09,191.05,0.03802837]
[1739378737948,25.23795983,191.19,191.05,0.03802837]
[1739378738148,23.56855983,191.19,191.04,23.56855983]
[1739378738554,5.232,191.15,191.04,23.56855983]
[1739378738948,5.232,191.15,191.1,5.2329]
[1739378739152,0.03451079,191.11,191.1,5.2329]
[1739378740252,0.03451079,191.11,191.09,5.2333]
[1739378740547,0.03451079,191.11,191.08,0.03805358]
[1739378741152,5.2334,191.09,191.08,0.03805358]
[1739378743354,5.2347,191.04,190.99,5.2359]
[1739378743857,5.2345,191.05,191.0,5.2357]
[1739378744757,0.03612327,191.04,191.01,5.26825248]
[1739378744958,0.03612327,191.04,191.01,0.03295248]
[1739378745456,1.5766,191.12,191.03,5.235]
[1739378745650,25.07975983,191.19,191.01,23.60151231]
[1739378745857,26.74455983,191.19,191.04,23.56855983]
[1739378746161,23.56855983,191.13,190.98,125.3835802]
[1739378746356,23.56855983,191.1,190.98,101.81502037]
[1739378746753,0.03440076,191.06,191.02,0.03594068]
[1739378747059,5.2345,191.05,191.02,0.03594068]
[1739378748458,0.03440076,191.06,191.02,5.27114068]
[1739378749552,23.56855983,191.16,191.02,0.03594068]
[1739378749753,0.96188247,191.15,190.98,125.3835802]
[1739378749957,23.56855983,191.13,190.99,1.6321]
[1739378750756,0.03725388,191.08,191.05,5.2344]
[1739378750957,0.03725388,191.08,191.04,0.03624606]
[1739378751457,5.234,191.07,191.04,0.03624606]
[1739378752958,5.2344,191.05,191.04,0.03624606]
[1739378761356,5.2342,191.06,191.04,0.03624606]
[1739378761560,14.80610376,191.07,191.04,0.03624606]
[1739378761967,5.2344,191.05,191.04,0.03624606]
[1739378762169,14.80610376,191.07,190.97,1.667]
[1739378762472,20.04170376,191.01,190.97,6.9035]
[1739378763469,20.08012556,191.01,190.97,6.9373364]
[1739378765070,5.2740218,191.01,190.97,6.9373364]
[1739378765466,5.2740218,191.01,190.97,1.7008364]
[1739378765467,0.0384218,191.01,190.97,1.7008364]
[1739378766666,0.0384218,191.01,190.98,5.2363]
[1739378767067,14.84452556,191.01,190.97,0.0338364]
[1739378767368,5.2364,190.98,190.97,0.0338364]
[1739378768367,29.61220752,191.0,190.9,1.5479]
[1739378768670,14.80610376,190.95,190.9,1.5479]
[1739378769673,0.03411136,190.94,190.91,0.03416553]
[1739378769969,14.80610376,190.98,190.9,1.5479]
[1739378770170,0.03645633,190.94,190.91,0.03986578]
[1739378770566,14.80610376,191.01,190.91,0.03986578]
[1739378770869,14.80610376,191.04,190.92,14.80610376]
[1739378771066,14.80610376,191.04,190.98,5.2361]
[1739378771662,0.0383799,191.03,190.99,0.03382068]
[1739378771866,14.80610376,191.01,190.99,0.03382068]
[1739378773277,5.2358,191.0,190.99,0.03382068]
[1739378774269,23.7017432,191.01,190.93,5.2377]
[1739378774464,5.2367,190.97,190.93,5.2377]
[1739378774673,23.7017432,190.98,190.9,1.5479]
[1739378774871,5.2372,190.95,190.9,6.7863]
[1739378775472,0.0341547,190.94,190.91,0.03837523]
[1739378776476,5.2378,190.93,190.91,0.03837523]
[1739378776976,5.238,190.92,190.91,0.03837523]
[1739378779373,23.7017432,190.92,190.8,3.1839]
[1739378779570,5.2391,190.88,190.84,5.2401]
[1739378780183,5.2389,190.89,190.85,5.2399]
[1739378780577,5.27399623,190.89,190.85,5.27521262]
[1739378780780,0.03509623,190.89,190.87,5.2392]
[1739378780970,25.3713432,191.01,190.85,23.73705582]
[1739378781169,25.3713432,191.01,190.86,1.5715]
[1739378781372,5.2371,190.96,190.92,5.2377]
[1739378781778,25.3713432,191.01,190.92,5.2377]
[1739378782178,5.27418224,190.98,190.95,0.04001355]
[1739378782379,0.03758224,190.98,190.95,0.04001355]
[1739378782983,0.03758224,190.98,190.97,5.2366]
[1739378783177,23.7017432,191.07,190.95,0.04001355]
[1739378783485,86.90015819,191.1,190.89,1.5826]
[1739378783486,5.2336,191.08,191.02,5.235]
[1739378783784,5.2336,191.08,190.94,23.7017432]
[1739378783979,5.2336,191.08,190.95,1.6293]
[1739378784185,86.50435819,191.1,190.97,23.7017432]
[1739378784481,5.689e-05,191.03,191.0,23.73957902]
[1739378784785,5.2325,191.12,191.06,5.2341]
[1739378785084,23.7017432,191.13,191.01,1.6406]
[1739378785585,0.03868526,191.09,191.05,0.03593716]
[1739378786191,0.03868526,191.09,191.05,5.27033716]
[1739378786384,0.03868526,191.09,191.05,0.03593716]
[1739378787086,0.03868526,191.09,191.06,5.2341]
[1739378787686,0.03868526,191.09,191.07,5.2338]
[1739378787883,5.2322,191.14,191.05,0.03593716]
[1739378788085,23.7017432,191.19,191.05,0.03593716]
[1739378788285,23.7017432,191.19,191.04,1.544]
[1739378788882,23.7017432,191.19,191.1,0.04019575]
[1739378789084,0.0341991,191.13,191.1,0.04019575]
[1739378789888,0.0341991,191.13,191.12,5.2325]
[1739378790088,1.568,191.24,191.11,1.5591]
[1739378790590,23.7017432,191.22,191.14,5.232]
[1739378791087,5.2309,191.19,191.16,0.03458432]
[1739378791980,5.2311,191.18,191.16,0.03458432]
[1739378792286,23.7017432,191.19,191.16,0.03458432]
[1739378792691,5.2312,191.17,191.16,0.03458432]
[1739378796385,5.2309,191.18,191.16,0.03458432]
[1739378796591,0.03410557,191.2,191.16,0.03458432]
[1739378796790,0.03410557,191.2,191.16,5.26598432]
[1739378797489,5.26470557,191.2,191.16,5.26598432]
[1739378797692,0.03410557,191.2,191.17,5.231]
[1739378797890,0.03410557,191.2,191.16,0.03458432]
[1739378798087,1.6635,191.29,191.16,0.03458432]
[1739378798288,23.7017432,191.31,191.15,23.7017432]
[1739378798489,23.7017432,191.31,191.16,1.5425]
[1739378799087,23.7017432,191.34,191.18,23.7017432]
[1739378799288,23.7017432,191.34,191.22,0.03486895]
[1739378799489,5.2278,191.3,191.25,5.2288]
[1739378799698,5.2278,191.3,191.26,0.03892807]
[1739378800589,5.2279,191.29,191.26,0.03892807]
[1739378801194,23.7017432,191.34,191.26,0.03892807]
[1739378801388,5.2272,191.32,191.27,5.2282]
[1739378802298,5.2268,191.33,191.28,5.228]
[1739378802693,5.2268,191.33,191.29,0.03797235]
[1739378802996,5.226,191.36,191.31,5.2271]
[1739378803390,5.226,191.36,191.32,0.03932158]
[1739378804393,5.226,191.36,191.32,5.26622158]
[1739378805688,3.1733,191.47,191.32,0.03932158]
[1739378805689,23.7017432,191.37,191.32,0.03932158]
[1739378805894,23.7017432,191.37,191.25,4.851]
[1739378806093,23.7017432,191.37,191.33,0.03421914]
[1739378806395,5.2268,191.33,191.29,5.2278]
[1739378806694,5.2268,191.33,191.29,5.26241444]
[1739378806898,5.2265,191.35,191.31,5.2273]
[1739378807397,23.7017432,191.37,191.31,0.03997901]
[1739378807592,5.2268,191.34,191.31,0.03997901]
[1739378807795,5.2268,191.34,191.32,0.03731541]
[1739378808394,5.2268,191.33,191.32,0.03731541]
[1739378808589,23.7017432,191.37,191.32,0.03731541]
[1739378808787,5.2268,191.34,191.32,0.03731541]
[1739378809096,23.7017432,191.34,191.32,0.03731541]
[1739378809297,23.7017432,191.34,191.28,5.2279]
[1739378809498,23.7017432,191.31,191.25,4.851]
[1739378809696,28.9291432,191.31,191.27,5.2284]
[1739378809998,23.7017432,191.28,191.16,191.0]
[1739378810198,23.7017432,191.28,191.25,5.2287]